bitfinex/quotes_BTCUSD_20250922
["timestamp","ask_amount","ask_price","bid_price","bid_amount"]
[1758541242666,2.15286597,113010.0,113000.0,0.00044]
[1758541242877,2.15286317,113010.0,113000.0,0.00044]
[1758541243056,2.15586317,113010.0,113000.0,0.00044]
[1758541243273,0.22699115,113000.0,112990.0,0.0005]
[1758541243480,2.2160007,113000.0,112990.0,1e-08]
[1758541243693,2.3377207,113000.0,112990.0,1e-08]
[1758541244108,2.34468861,113000.0,112990.0,1e-08]
[1758541244650,2.34668861,113000.0,112990.0,1e-08]
[1758541245290,2.34868861,113000.0,112990.0,1e-08]
[1758541245644,2.34867491,113000.0,112990.0,1e-08]
[1758541246269,2.34040208,113000.0,112990.0,1e-08]
[1758541246473,2.34867315,113000.0,112990.0,1e-08]
[1758541248013,2.36254909,113000.0,112990.0,1e-08]
[1758541248872,2.08326909,113000.0,112990.0,1e-08]
[1758541249079,3.27662109,113000.0,112990.0,1e-08]
[1758541249270,4.33450109,113000.0,112990.0,1e-08]
[1758541249520,3.57662109,113000.0,112990.0,1e-08]
[1758541249735,1.96764088,113000.0,112990.0,1e-08]
[1758541249941,2.44891019,113000.0,112990.0,1e-08]
[1758541250143,1.69102582,113000.0,112990.0,1e-08]
[1758541250323,1.47608615,113000.0,112990.0,0.00198001]
[1758541250562,1.57101615,113000.0,112990.0,0.02495001]
[1758541250776,1.57416615,113000.0,112990.0,1e-08]
[1758541251365,1.19920615,113000.0,112990.0,1e-08]
[1758541251582,1.65947582,113000.0,112990.0,1e-08]
[1758541251932,1.46722903,113000.0,112990.0,1e-08]
[1758541252133,1.46323051,113000.0,112990.0,1e-08]
[1758541252340,1.18395051,113000.0,112990.0,1e-08]
[1758541252578,1.09164457,113000.0,112990.0,0.02495001]
[1758541252781,1.2201276,113000.0,112990.0,0.02793001]
[1758541253003,0.8451676,113000.0,112990.0,0.02793001]
[1758541253228,1.1244076,113000.0,112990.0,0.02793001]
[1758541253408,1.2201276,113000.0,112990.0,0.02793001]
[1758541253813,1.1268376,113000.0,112990.0,0.02793001]
[1758541254648,1.1268449,113000.0,112990.0,0.02793001]
[1758541254810,1.37856097,113000.0,112990.0,1e-08]
[1758541255019,1.46124797,113000.0,112990.0,1e-08]
[1758541255661,1.4300836,113000.0,112990.0,1e-08]
[1758541257037,1.40168097,113000.0,112990.0,1e-08]
[1758541258590,1.31991824,113000.0,112990.0,1e-08]
[1758541260676,0.94495824,113000.0,112990.0,1e-08]
[1758541260884,1.31987824,113000.0,112990.0,1e-08]
[1758541261317,1.31989204,113000.0,112990.0,1e-08]
[1758541261905,1.34829467,113000.0,112990.0,1e-08]
[1758541262497,0.50573455,112990.0,112980.0,0.02993791]
[1758541262761,0.85665001,112990.0,112980.0,0.02993791]
[1758541263086,0.85860001,112990.0,112980.0,0.00911791]
[1758541263283,0.85860001,112990.0,112960.0,0.0004]
[1758541263284,0.22703815,112970.0,112960.0,1e-08]
[1758541263488,1.42520258,112970.0,112960.0,1e-08]
[1758541263627,1.45560192,112970.0,112960.0,1e-08]
[1758541263867,0.60671418,112970.0,112960.0,0.00215001]
[1758541264203,0.95323155,112970.0,112960.0,0.02913001]
[1758541264611,0.60773155,112970.0,112960.0,0.02913001]
[1758541264817,0.98265155,112970.0,112960.0,0.02913001]
[1758541265389,0.98264703,112970.0,112960.0,0.02913001]
[1758541265793,0.97764703,112970.0,112960.0,0.02913001]
[1758541266233,0.98664703,112970.0,112960.0,0.02913001]
[1758541269056,0.22705382,112960.0,112950.0,0.0004]
[1758541269261,1.18639965,112960.0,112950.0,0.02442]
[1758541269484,1.28406965,112960.0,112950.0,0.02657]
[1758541269665,1.31133965,112960.0,112950.0,0.0004]
[1758541270316,1.29213069,112960.0,112950.0,0.0004]
[1758541270494,1.29213069,112960.0,112950.0,0.02442]
[1758541270711,1.26391069,112960.0,112950.0,0.02657]
[1758541270910,1.26586069,112960.0,112950.0,0.02953]
[1758541271063,1.28999069,112960.0,112950.0,0.02657]
[1758541271271,1.29313069,112960.0,112950.0,0.0004]
[1758541271528,1.31970069,112960.0,112950.0,0.0004]
[1758541272146,1.325909,112960.0,112950.0,0.0004]
[1758541272394,1.41117867,112960.0,112950.0,0.0004]
[1758541272602,1.31970069,112960.0,112950.0,0.0004]
[1758541272842,1.39810332,112960.0,112950.0,1e-08]
[1758541273473,0.17706949,112950.0,112940.0,0.0004]
[1758541273683,0.54803113,112950.0,112940.0,0.0004]
[1758541273891,0.57725113,112950.0,112940.0,0.0004]
[1758541274093,0.62044213,112950.0,112940.0,0.0004]
[1758541274298,0.67044213,112950.0,112940.0,0.0004]
[1758541274500,0.65388337,112950.0,112940.0,0.0004]
[1758541274709,0.68492839,112950.0,112940.0,0.0004]
[1758541275336,0.75184786,112950.0,112940.0,0.0004]
[1758541275741,0.75184786,112950.0,112940.0,0.0014]
[1758541276323,1.03104786,112950.0,112940.0,0.0014]
[1758541276524,1.12676786,112950.0,112940.0,0.0014]
[1758541277180,1.12674989,112950.0,112940.0,0.0014]
[1758541277492,0.17708517,112940.0,112930.0,0.03106008]
[1758541277757,0.57116898,112940.0,112930.0,0.03106008]
[1758541277968,0.57116898,112940.0,112930.0,0.03616008]
[1758541278357,0.59780341,112940.0,112930.0,0.03616008]
[1758541279153,0.59780341,112940.0,112930.0,0.04116008]
[1758541280426,0.97272341,112940.0,112930.0,0.04116008]
[1758541281026,0.97471341,112940.0,112930.0,0.03803008]
[1758541282024,0.59979341,112940.0,112930.0,0.03803008]
[1758541282226,0.97475341,112940.0,112930.0,0.03803008]
[1758541282699,0.99772341,112940.0,112930.0,0.03803008]
[1758541283103,0.98120223,112940.0,112930.0,0.03803008]
[1758541284027,0.60624223,112940.0,112930.0,0.03803008]
[1758541284225,0.98120223,112940.0,112930.0,0.03803008]
[1758541284836,0.25255449,112940.0,112930.0,0.01714008]
[1758541285039,0.95620223,112940.0,112930.0,0.04032008]
[1758541285550,0.58128223,112940.0,112930.0,0.04032008]
[1758541285724,0.95620223,112940.0,112930.0,0.04032008]
[1758541286224,0.9561832,112940.0,112930.0,0.04032008]
[1758541287244,0.5812632,112940.0,112930.0,0.04032008]
[1758541287435,0.9561832,112940.0,112930.0,0.04032008]
[1758541287999,0.8604232,112940.0,112930.0,0.04032008]
[1758541288162,0.9561832,112940.0,112930.0,0.04032008]
[1758541288566,0.5812632,112940.0,112930.0,0.04032008]
[1758541288770,0.9561832,112940.0,112930.0,0.04032008]
[1758541288995,0.8604232,112940.0,112930.0,0.04032008]
[1758541289210,0.55769491,112940.0,112930.0,0.04032008]
[1758541289407,0.83685812,112940.0,112930.0,0.04032008]
[1758541289930,0.82906018,112940.0,112930.0,0.04032008]
[1758541290264,0.54990018,112940.0,112930.0,0.04032008]
[1758541290489,0.82906018,112940.0,112930.0,0.04032008]
[1758541290876,0.54990018,112940.0,112930.0,0.04032008]
[1758541291084,0.82906018,112940.0,112930.0,0.04032008]
[1758541291738,0.54990018,112940.0,112930.0,0.04032008]
[1758541291938,0.82906433,112940.0,112930.0,0.04032008]
[1758541292142,0.83733175,112940.0,112930.0,0.04032008]
[1758541293241,0.85387541,112940.0,112930.0,0.04032008]
[1758541294585,0.85383541,112940.0,112930.0,0.04032008]
[1758541297641,0.85596678,112940.0,112930.0,0.01204008]
[1758541297867,0.85596678,112940.0,112930.0,0.03718008]
[1758541298051,0.57472678,112940.0,112930.0,0.04014008]
[1758541298245,0.85384678,112940.0,112930.0,0.04014008]
[1758541298447,0.57472678,112940.0,112930.0,0.04014008]
[1758541298644,0.83683364,112940.0,112930.0,0.21724093]
[1758541298882,0.5081059,112940.0,112930.0,0.21724093]
[1758541299647,0.83683364,112940.0,112930.0,0.21724093]
[1758541299853,0.33102073,112940.0,112930.0,0.21724093]
[1758541300437,0.32481203,112940.0,112930.0,0.21724093]
[1758541302756,0.5018972,112940.0,112930.0,0.21724093]
[1758541304788,0.55061475,112940.0,112930.0,0.21724093]
[1758541306508,0.53155715,112940.0,112930.0,0.21724093]
[1758541307130,0.35447198,112940.0,112930.0,0.21724093]
[1758541307561,0.53155715,112940.0,112930.0,0.21724093]
[1758541312704,0.53367715,112940.0,112930.0,0.21724093]
[1758541312883,0.86240489,112940.0,112930.0,0.21428093]
[1758541313090,0.88146249,112940.0,112930.0,0.21428093]
[1758541313508,0.90927249,112940.0,112930.0,0.21428093]
[1758541313968,0.88453249,112940.0,112930.0,0.01204008]
[1758541314172,0.90927249,112940.0,112930.0,0.01204008]
[1758541315429,0.89021489,112940.0,112930.0,0.01204008]
[1758541315640,0.89021489,112940.0,112930.0,0.18914093]
[1758541315834,0.61109489,112940.0,112930.0,0.18914093]
[1758541315993,0.58116489,112940.0,112930.0,0.21724093]
[1758541316374,0.58328489,112940.0,112930.0,0.21724093]
[1758541317010,0.86228489,112940.0,112930.0,0.21724093]
[1758541317222,0.58328489,112940.0,112930.0,0.21724093]
[1758541317421,0.86228489,112940.0,112930.0,0.21724093]
[1758541317627,0.86228489,112940.0,112930.0,0.21428093]
[1758541318760,0.88807489,112940.0,112930.0,0.21428093]
[1758541320588,0.88807489,112940.0,112930.0,0.01418008]
[1758541320778,1.05267273,112940.0,112930.0,0.01204008]
[1758541320922,1.05267273,112940.0,112930.0,0.18914093]
[1758541321359,1.05267273,112940.0,112930.0,0.01204008]
[1758541321570,1.05267273,112940.0,112930.0,0.18914093]
[1758541323143,0.80600994,112940.0,112930.0,0.01204008]
[1758541323966,1.05267273,112940.0,112930.0,0.01204008]
[1758541325186,0.80600994,112940.0,112930.0,0.18914093]
[1758541325955,0.80600994,112940.0,112930.0,0.01204008]
[1758541326363,0.82509766,112940.0,112930.0,0.01204008]
[1758541327966,0.82509766,112940.0,112930.0,0.18914093]
[1758541327967,0.54609766,112940.0,112930.0,0.18914093]
[1758541328213,0.82501766,112940.0,112930.0,0.18914093]
[1758541329044,0.82501766,112940.0,112930.0,0.19129093]
[1758541329253,0.82501766,112940.0,112930.0,0.01419008]
[1758541329470,0.82501766,112940.0,112930.0,0.01204008]
[1758541331490,1.07168045,112940.0,112930.0,0.01204008]
[1758541336508,0.79276045,112940.0,112930.0,0.01204008]
[1758541336665,1.07164045,112940.0,112930.0,0.01204008]
[1758541336869,0.79276045,112940.0,112930.0,0.01204008]
[1758541337101,1.07164045,112940.0,112930.0,0.01204008]
[1758541341265,0.79276045,112940.0,112930.0,0.01408008]
[1758541341474,1.07164045,112940.0,112930.0,0.01408008]
[1758541342089,1.07164045,112940.0,112930.0,0.01204008]
[1758541342909,0.79276045,112940.0,112930.0,0.01204008]
[1758541343048,1.07160045,112940.0,112930.0,0.01204008]
[1758541346721,0.79276045,112940.0,112930.0,0.01204008]
[1758541347011,1.07160045,112940.0,112930.0,0.01204008]
[1758541349584,1.07781775,112940.0,112930.0,0.01204008]
[1758541349795,1.0778178,112940.0,112930.0,0.01204008]
[1758541353248,0.7989778,112940.0,112930.0,0.01204008]
[1758541353519,1.0777778,112940.0,112930.0,0.01204008]
[1758541353807,0.7989778,112940.0,112930.0,0.01204008]
[1758541354020,1.0777778,112940.0,112930.0,0.01204008]
[1758541354142,0.89075288,112940.0,112930.0,0.01204008]
[1758541355006,0.91738091,112940.0,112930.0,0.01204008]
[1758541356648,1.1640437,112940.0,112930.0,0.01204008]
[1758541357890,0.91738091,112940.0,112930.0,0.01204008]
[1758541358666,0.63858091,112940.0,112930.0,0.01204008]
[1758541359072,1.01310091,112940.0,112930.0,0.01204008]
[1758541359451,0.63858091,112940.0,112930.0,0.01204008]
[1758541359870,1.01310091,112940.0,112930.0,0.01204008]
[1758541360282,0.63858091,112940.0,112930.0,0.01204008]
[1758541360483,1.01310091,112940.0,112930.0,0.01204008]
[1758541360691,0.98720436,112940.0,112930.0,0.01204008]
[1758541361843,0.61268436,112940.0,112930.0,0.01204008]
[1758541362049,0.89144436,112940.0,112930.0,0.01204008]
[1758541362251,0.98720436,112940.0,112930.0,0.01204008]
[1758541362617,1.01226436,112940.0,112930.0,0.01204008]
[1758541363619,1.0398454,112940.0,112930.0,0.01204008]
[1758541364885,0.91650436,112940.0,112930.0,0.01204008]
[1758541365094,0.23696055,112940.0,112930.0,0.01204008]
[1758541365291,1.00900613,112940.0,112930.0,0.01204008]
[1758541365489,1.10476613,112940.0,112930.0,0.01204008]
[1758541365692,1.37499721,112940.0,112930.0,0.01204008]
[1758541366698,1.03257442,112940.0,112930.0,0.01204008]
[1758541366893,1.12833442,112940.0,112930.0,0.01104008]
[1758541367079,1.12832424,112940.0,112930.0,0.01104008]
[1758541367919,0.92461104,112940.0,112930.0,0.01104008]
[1758541368249,1.37599324,112940.0,112930.0,0.01104008]
[1758541368448,1.37599324,112940.0,112930.0,0.00704008]
[1758541369035,1.37899324,112940.0,112930.0,0.00704008]
[1758541369556,1.13233045,112940.0,112930.0,0.00704008]
[1758541370337,0.63900487,112940.0,112930.0,0.00704008]
[1758541370546,1.13233045,112940.0,112930.0,0.00704008]
[1758541370745,1.28323324,112940.0,112930.0,0.00704008]
[1758541371003,1.37899324,112940.0,112930.0,0.00704008]
[1758541371212,1.00451324,112940.0,112930.0,0.00704008]
[1758541371436,1.37899324,112940.0,112930.0,0.00704008]
[1758541372589,1.39805684,112940.0,112930.0,0.00704008]
[1758541373294,1.02357684,112940.0,112930.0,0.00704008]
[1758541373503,0.77691405,112940.0,112930.0,0.00704008]
[1758541374444,1.15135405,112940.0,112930.0,0.00704008]
[1758541374646,1.39801684,112940.0,112930.0,0.00704008]
[1758541375464,1.02357684,112940.0,112930.0,0.00704008]
[1758541375668,1.39801684,112940.0,112930.0,0.00704008]
[1758541376490,1.02357684,112940.0,112930.0,0.00704008]
[1758541377342,1.39801684,112940.0,112930.0,0.00704008]
[1758541378199,1.02357684,112940.0,112930.0,0.00704008]
[1758541378580,1.39801684,112940.0,112930.0,0.00704008]
[1758541380256,1.02133684,112940.0,112930.0,0.00704008]
[1758541380450,0.99851684,112940.0,112930.0,0.00704008]
[1758541380702,0.32875018,112940.0,112930.0,0.03658008]
[1758541380907,0.49256658,112940.0,112930.0,0.03658008]
[1758541381178,0.81538012,112940.0,112930.0,0.21368093]
[1758541381412,0.04969784,112940.0,112930.0,0.2989506]
[1758541381568,0.02963424,112940.0,112930.0,0.2989506]
[1758541381773,0.35865495,112940.0,112930.0,0.2989506]
[1758541381976,0.35565495,112940.0,112930.0,0.2989506]
[1758541382934,0.35565495,112940.0,112930.0,0.3039506]
[1758541390252,0.53274012,112940.0,112930.0,0.3039506]
[1758541390661,0.02663424,112940.0,112930.0,0.3039506]
[1758541390862,0.35565495,112940.0,112930.0,0.3039506]
[1758541396021,0.35565495,112940.0,112930.0,0.5824706]
[1758541396395,0.35565495,112940.0,112930.0,0.3039506]
[1758541396596,0.35565495,112940.0,112930.0,0.5824706]
[1758541397011,0.35565495,112940.0,112930.0,0.3039506]
[1758541397198,0.35565495,112940.0,112930.0,0.5824706]
[1758541398970,0.35515495,112940.0,112930.0,0.5824706]
[1758541402647,0.36414461,112940.0,112930.0,0.5824706]
[1758541404804,0.36414461,112940.0,112930.0,0.3039506]
[1758541404927,0.36414461,112940.0,112930.0,0.5824306]
[1758541405940,0.36414461,112940.0,112930.0,0.3039506]
[1758541406551,0.36414461,112940.0,112930.0,0.5823906]
[1758541409929,0.54122978,112940.0,112930.0,0.3039506]
[1758541410290,0.54122978,112940.0,112930.0,0.5823906]
[1758541411982,0.54122978,112940.0,112930.0,0.6125425]
[1758541412206,0.56034289,112940.0,112930.0,0.6125425]
[1758541412439,0.55135323,112940.0,112930.0,0.6125425]
[1758541413820,0.53224012,112940.0,112930.0,0.6125425]
[1758541414248,0.53224012,112940.0,112930.0,0.13259165]
[1758541414487,0.95397603,112940.0,112930.0,0.01204008]
[1758541415335,0.92639499,112940.0,112930.0,0.01204008]
[1758541415544,0.92639116,112940.0,112930.0,0.01204008]
[1758541415981,0.9539722,112940.0,112930.0,0.01204008]
[1758541416193,0.92639116,112940.0,112930.0,0.01204008]
[1758541417007,1.20479116,112940.0,112930.0,0.01204008]
[1758541419425,1.20475405,112940.0,112930.0,0.01204008]
[1758541421624,1.20475405,112940.0,112930.0,0.01074237]
[1758541421838,0.92635405,112940.0,112930.0,0.01074237]
[1758541422452,1.21378556,112940.0,112930.0,0.01074237]
[1758541422711,0.93538556,112940.0,112930.0,0.01074237]
[1758541423364,1.21378556,112940.0,112930.0,0.01074237]
[1758541423565,1.5939556,112940.0,112930.0,0.01074237]
[1758541423798,1.56637456,112940.0,112930.0,0.01074237]
[1758541424306,1.28797456,112940.0,112930.0,0.01074237]
[1758541424517,1.56637456,112940.0,112930.0,0.01074237]
[1758541424698,1.66209456,112940.0,112930.0,0.01074237]
[1758541424902,1.28797456,112940.0,112930.0,0.01074237]
[1758541425107,1.56637456,112940.0,112930.0,0.01074237]
[1758541425322,1.66213456,112940.0,112930.0,0.01074237]
[1758541425525,1.28797456,112940.0,112930.0,0.01074237]
[1758541425764,1.66213456,112940.0,112930.0,0.01074237]
[1758541432652,1.28797456,112940.0,112930.0,0.01074237]
[1758541432917,1.66213456,112940.0,112930.0,0.01074237]
[1758541433078,1.66211751,112940.0,112930.0,0.01074237]
[1758541433700,1.28795751,112940.0,112930.0,0.01074237]
[1758541433898,1.66211751,112940.0,112930.0,0.01074237]
[1758541435112,1.4588981,112940.0,112930.0,0.01074237]
[1758541435315,1.63598327,112940.0,112930.0,0.01074237]
[1758541435533,1.65982327,112940.0,112930.0,0.01074237]
[1758541435719,1.56406327,112940.0,112930.0,0.01074237]
[1758541435979,0.92782256,112940.0,112930.0,0.03936237]
[1758541436167,1.20622256,112940.0,112930.0,0.03936237]
[1758541437249,1.20828256,112940.0,112930.0,0.03936237]
[1758541438039,1.20828256,112940.0,112930.0,0.03621237]
[1758541440241,0.92988256,112940.0,112930.0,0.03621237]
[1758541440472,1.20824256,112940.0,112930.0,0.03621237]
[1758541440711,1.61953713,112940.0,112930.0,0.03621237]
[1758541441533,1.64414713,112940.0,112930.0,0.01277237]
[1758541450057,1.64414713,112940.0,112930.0,0.01074237]
[1758541451031,1.64410713,112940.0,112930.0,0.01074237]
[1758541453247,0.90379185,112940.0,112930.0,0.01074237]
[1758541453456,1.64410713,112940.0,112930.0,0.01074237]
[1758541454066,1.66285072,112940.0,112930.0,0.01074237]
[1758541454402,2.43074704,112940.0,112930.0,0.01074237]
[1758541454616,1.7271259,112940.0,112930.0,0.01074237]
[1758541454839,1.67114223,112940.0,112930.0,0.01074237]
[1758541460655,1.66898223,112940.0,112930.0,0.01074237]
[1758541463249,1.66069072,112940.0,112930.0,0.01074237]
[1758541463451,1.65165921,112940.0,112930.0,0.01074237]
[1758541467460,1.65389921,112940.0,112930.0,0.01074237]
[1758541467664,1.66218799,112940.0,112930.0,0.01074237]
[1758541468056,1.66220379,112940.0,112930.0,0.01074237]
[1758541468494,2.37782907,112940.0,112930.0,1e-08]
[1758541468693,0.51710085,112930.0,112920.0,0.0004]
[1758541468903,1.63740257,112930.0,112920.0,0.0004]
[1758541469103,1.66631257,112930.0,112920.0,0.0004]
[1758541469533,1.68932257,112930.0,112920.0,0.0004]
[1758541470001,1.68936925,112930.0,112920.0,0.0004]
[1758541471569,1.69336925,112930.0,112920.0,0.0004]
[1758541472288,1.69536925,112930.0,112920.0,0.0004]
[1758541473557,1.79112925,112930.0,112920.0,0.0004]
[1758541474484,1.48211243,112930.0,112920.0,0.0004]
[1758541474710,1.85615243,112930.0,112920.0,0.0004]
[1758541474931,1.48211243,112930.0,112920.0,0.0004]
[1758541475107,1.9414221,112930.0,112920.0,0.0004]
[1758541475543,1.8456621,112930.0,112920.0,0.0004]
[1758541475746,1.9414221,112930.0,112920.0,0.0004]
[1758541476629,2.24072139,112930.0,112920.0,0.0004]
[1758541476836,2.16965139,112930.0,112920.0,0.0004]
[1758541477051,1.92287963,112930.0,112920.0,0.0004]
[1758541477262,2.26541139,112930.0,112920.0,0.0004]
[1758541477665,1.89137139,112930.0,112920.0,0.0004]
[1758541478048,2.26541139,112930.0,112920.0,0.0004]
[1758541479171,1.89137139,112930.0,112920.0,0.0004]
[1758541479415,1.61990963,112930.0,112920.0,0.00533]
[1758541479623,1.92686645,112930.0,112920.0,0.02794]
[1758541480503,1.53624286,112930.0,112920.0,0.00533]
[1758541480702,1.54379075,112930.0,112920.0,0.02794]
[1758541480917,1.78227373,112930.0,112920.0,0.02794]
[1758541482373,1.34327373,112930.0,112920.0,0.02794]
[1758541482809,1.34326627,112930.0,112920.0,0.02794]
[1758541485126,0.84972275,112930.0,112920.0,0.02794]
[1758541485328,1.09649451,112930.0,112920.0,0.02794]
[1758541486571,1.09649589,112930.0,112920.0,0.02794]
[1758541488661,1.34326765,112930.0,112920.0,0.02794]
[1758541491363,0.84972413,112930.0,112920.0,0.02794]
[1758541491566,1.34326765,112930.0,112920.0,0.02794]
[1758541496343,1.09649589,112930.0,112920.0,0.02794]
[1758541496944,1.34326765,112930.0,112920.0,0.02794]
[1758541498385,1.09649589,112930.0,112920.0,0.02794]
[1758541499423,0.81821589,112930.0,112920.0,0.02794]
[1758541499597,1.09020529,112930.0,112920.0,0.02794]
[1758541499798,1.09020529,112930.0,112920.0,0.03008]
[1758541500220,0.56523353,112930.0,112920.0,0.22490819]
[1758541500460,1.07112929,112930.0,112920.0,0.20719654]
[1758541500887,1.06912929,112930.0,112920.0,0.20719654]
[1758541501103,0.89202844,112930.0,112920.0,0.20719654]
[1758541501317,0.54415753,112930.0,112920.0,0.20719654]
[1758541501533,0.78692929,112930.0,112920.0,0.20719654]
[1758541502669,0.86913527,112930.0,112920.0,0.20719654]
[1758541502891,0.86913527,112930.0,112920.0,0.03008]
[1758541503092,1.14729527,112930.0,112920.0,0.03008]
[1758541503292,0.81831753,112930.0,112920.0,0.18244654]
[1758541503434,1.14729527,112930.0,112920.0,0.20719654]
[1758541504134,0.86913527,112930.0,112920.0,0.20719654]
[1758541504542,1.14729527,112930.0,112920.0,0.20719654]
[1758541505151,1.14729527,112930.0,112920.0,0.03008]
[1758541505559,1.17685631,112930.0,112920.0,0.0004]
[1758541505769,1.21966137,112930.0,112920.0,0.0004]
[1758541507850,1.19593137,112930.0,112920.0,0.0004]
[1758541508048,1.22811197,112930.0,112920.0,0.0004]
[1758541508463,1.20053093,112930.0,112920.0,0.0004]
[1758541509392,0.86053093,112930.0,112920.0,0.0004]
[1758541510408,0.86053473,112930.0,112920.0,0.0004]
[1758541510846,0.88811577,112930.0,112920.0,0.0004]
[1758541510988,0.86053473,112930.0,112920.0,0.0004]
[1758541511205,0.86049473,112930.0,112920.0,0.0004]
[1758541511389,0.58237473,112930.0,112920.0,0.0004]
[1758541511791,0.86049473,112930.0,112920.0,0.0004]
[1758541513025,0.58013473,112930.0,112920.0,0.0004]
[1758541513236,1.19825473,112930.0,112920.0,0.0004]
[1758541514024,0.86927699,112930.0,112920.0,0.00239]
[1758541514239,0.84356699,112930.0,112920.0,0.00547]
[1758541514448,1.17254473,112930.0,112920.0,0.03022]
[1758541515521,1.16633033,112930.0,112920.0,0.03022]
[1758541516102,1.16633033,112930.0,112920.0,0.03122]
[1758541516495,1.16633033,112930.0,112920.0,0.03422]
[1758541517671,0.82633033,112930.0,112920.0,0.03422]
[1758541517923,0.80725527,112930.0,112920.0,0.21133654]
[1758541518137,0.80725527,112930.0,112920.0,0.03422]
[1758541518784,0.57984103,112930.0,112920.0,0.03422]
[1758541519083,0.60647265,112930.0,112920.0,0.03422]
[1758541519304,0.57657649,112930.0,112920.0,0.03422]
[1758541521494,0.58488224,112930.0,112920.0,0.03422]
[1758541521702,0.6039774,112930.0,112920.0,0.03114]
[1758541521926,0.6283674,112930.0,112920.0,0.00639]
[1758541522756,0.6283674,112930.0,112920.0,0.0044]
[1758541523169,0.6304974,112930.0,112920.0,0.0044]
[1758541524159,0.53364338,112930.0,112920.0,0.0044]
[1758541524367,0.86262112,112930.0,112920.0,0.00645]
[1758541525088,0.58450112,112930.0,112920.0,0.00645]
[1758541525314,0.86053112,112930.0,112920.0,0.0044]
[1758541525518,0.83614112,112930.0,112920.0,0.0044]
[1758541525722,0.83614112,112930.0,112920.0,0.02772]
[1758541526135,0.86053112,112930.0,112920.0,0.0044]
[1758541527188,0.86053141,112930.0,112920.0,0.0044]
[1758541530436,0.86252141,112930.0,112920.0,0.0044]
[1758541532844,0.53354367,112930.0,112920.0,0.0044]
[1758541533050,0.86252141,112930.0,112920.0,0.0044]
[1758541533634,0.53354367,112930.0,112920.0,0.0044]
[1758541533837,0.84342625,112930.0,112920.0,0.0044]
[1758541534026,0.58440141,112930.0,112920.0,0.0044]
[1758541534228,0.86252141,112930.0,112920.0,0.0044]
[1758541536069,0.56001141,112930.0,112920.0,0.03219]
[1758541536290,0.22904367,112930.0,112920.0,0.20418819]
[1758541536539,0.20994851,112930.0,112920.0,0.20930654]
[1758541537392,0.03284766,112930.0,112920.0,0.20930654]
[1758541537599,0.02663162,112930.0,112920.0,0.32472811]
[1758541538025,0.02663162,112930.0,112920.0,0.60280811]
[1758541538448,0.02663162,112930.0,112920.0,0.67092891]
[1758541538647,0.46137954,112950.0,112930.0,0.17708617]
[1758541538859,0.80142637,112950.0,112940.0,0.00201]
[1758541539062,0.82052153,112950.0,112940.0,0.02779]
[1758541539446,0.84714892,112950.0,112940.0,0.02779]
[1758541539854,0.56906892,112950.0,112940.0,0.20487517]
[1758541540055,0.84714892,112950.0,112940.0,0.20487517]
[1758541540253,0.84714892,112950.0,112940.0,0.02779]
[1758541540501,0.84714892,112950.0,112940.0,0.20487517]
[1758541540710,0.22283887,112950.0,112940.0,0.29014484]
[1758541540895,0.20474371,112950.0,112940.0,0.11305967]
[1758541541710,0.20874371,112950.0,112940.0,0.11305967]
[1758541541914,0.20774371,112950.0,112940.0,0.11305967]
[1758541542461,0.20874371,112950.0,112940.0,0.11305967]
[1758541544047,0.20874371,112950.0,112940.0,0.29014484]
[1758541545576,0.20874371,112950.0,112940.0,0.11305967]
[1758541546573,0.20874371,112950.0,112940.0,0.29014484]
[1758541546797,0.20874371,112950.0,112940.0,0.11305967]
[1758541547018,0.20874371,112950.0,112940.0,0.29014484]
[1758541547187,0.03167422,112950.0,112940.0,0.26731484]
[1758541547387,0.20874371,112950.0,112940.0,0.29014484]
[1758541548131,0.03167422,112950.0,112940.0,0.32029674]
[1758541548558,0.00504683,112950.0,112940.0,0.32029674]
[1758541548762,0.03166902,112950.0,112940.0,0.32029674]
[1758541549143,0.03166902,112950.0,112940.0,0.32917877]
[1758541549306,0.00104683,112950.0,112940.0,0.32029674]
[1758541549503,4.683e-05,112950.0,112940.0,0.32029674]
[1758541549692,4.683e-05,112950.0,112940.0,0.33029674]
[1758541549893,4.683e-05,112950.0,112940.0,0.60933674]
[1758541550332,4.683e-05,112950.0,112940.0,0.61735546]
[1758541550539,4.683e-05,112950.0,112940.0,0.95735546]
[1758541550738,4.683e-05,112950.0,112940.0,0.96135546]
[1758541551496,4.683e-05,112950.0,112940.0,1.05707546]
[1758541551683,4.683e-05,112950.0,112940.0,1.10707546]
[1758541553178,4.683e-05,112950.0,112940.0,1.14307546]
[1758541553372,1e-08,112950.0,112940.0,0.77831546]
[1758541553688,1e-08,112950.0,112940.0,1.55603546]
[1758541554258,0.07126631,112980.0,112970.0,0.54719005]
[1758541554460,0.07126631,112980.0,112970.0,0.91060029]
[1758541554662,0.07126631,112980.0,112970.0,1.03411029]
[1758541555052,0.02661154,113000.0,112990.0,0.20715871]
[1758541555274,0.02661154,113000.0,112990.0,0.57042838]
[1758541555484,0.02661154,113000.0,112990.0,0.59821838]
[1758541556482,0.02961154,113000.0,112990.0,0.59821838]
[1758541556894,0.02961154,113000.0,112990.0,0.59921838]
[1758541557307,0.003,113000.0,112990.0,0.59921838]
[1758541557741,0.003,113000.0,112990.0,0.32121838]
[1758541557949,0.003,113000.0,112990.0,0.59917838]
[1758541558655,0.003,113000.0,112990.0,0.66519702]
[1758541558878,0.003,113000.0,112990.0,0.72723702]
[1758541559097,0.003,113000.0,112990.0,1.10091702]
[1758541559331,0.003,113000.0,112990.0,1.00523702]
[1758541559541,0.003,113000.0,112990.0,0.72723702]
[1758541559749,0.01728605,113020.0,113010.0,0.17697548]
[1758541559946,0.02551158,113020.0,113010.0,0.54024515]
[1758541560148,0.02551158,113020.0,113010.0,0.54238515]
[1758541560358,0.01728605,113020.0,113010.0,0.57015515]
[1758541560574,0.02550755,113020.0,113010.0,0.57015515]
[1758541561225,0.02550755,113020.0,113010.0,0.60030705]
[1758541561432,0.02550755,113020.0,113010.0,0.94030705]
[1758541561654,0.01728605,113020.0,113010.0,0.66230705]
[1758541561858,0.01728605,113020.0,113010.0,0.94022705]
[1758541562085,0.01728605,113020.0,113010.0,1.03590705]
[1758541562303,0.02549899,113020.0,113010.0,1.03590705]
[1758541562721,0.02849899,113020.0,113010.0,0.67311171]
[1758541562931,0.02549899,113020.0,113010.0,1.04683171]
[1758541563140,0.01728605,113020.0,113010.0,1.04483171]
[1758541563459,0.01728605,113020.0,113010.0,1.05383171]
[1758541564419,0.01727302,113020.0,113010.0,1.05379171]
[1758541564969,0.0111169,113020.0,113010.0,1.05379171]
[1758541565587,0.0111169,113020.0,113010.0,0.68011171]
[1758541565815,1e-08,113020.0,113010.0,1.05371171]
[1758541565971,1e-08,113020.0,113010.0,0.68011171]
[1758541566179,1e-08,113020.0,113010.0,1.08027133]
[1758541566798,1e-08,113020.0,113010.0,0.70671133]
[1758541566995,1e-08,113020.0,113010.0,1.08027133]